fUST/lending_fUST_20260204
["ID","MTS","AMOUNT","RATE_DAILY","PERIOD"]
[404456759,1770152487838,221.8913821,0.00013699,2]
[404456760,1770152487861,278.1086179,0.00013699,2]
[404456761,1770152487888,500.0,0.00013699,2]
[404456762,1770152488053,500.0,0.00013699,2]
[404456763,1770152488147,500.0,0.00013699,2]
[404456764,1770152488326,212.5278118,0.00013273,2]
[404456765,1770152488450,500.0,0.00013699,2]
[404456766,1770152488487,500.0,0.00013699,2]
[404456767,1770152488796,500.0,0.00013699,2]
[404456770,1770152525141,320.27,0.00013699,2]
[404456771,1770152527035,500.35669441,0.00013699,2]
[404456772,1770152527063,500.0,0.00013699,2]
[404456773,1770152529712,500.0,0.00013699,2]
[404456774,1770152529741,300.0,0.00013673,2]
[404456776,1770152582874,590.88003071,0.00013273,2]
[404456777,1770152582966,500.0,0.00013699,2]
[404456778,1770152583092,377.55601655,0.00013699,2]
[404456779,1770152585969,329.82006764,0.00013273,2]
[404456780,1770152586158,500.0,0.00013273,2]
[404456781,1770152586268,494.37095266,0.00013699,2]
[404456782,1770152586518,500.0,0.00013699,2]
[404456783,1770152586560,509.07562023,0.00013699,2]
[404456784,1770152586656,500.0,0.00013273,2]
[404456785,1770152600064,500.0,0.00013699,2]
[404456786,1770152602274,500.0,0.00013699,2]
[404456787,1770152603271,312.9594804,0.00013699,2]
[404456788,1770152605422,500.0,0.00013699,2]
[404456789,1770152605554,500.0,0.00013699,2]
[404456790,1770152605605,500.0,0.00013699,2]
[404456791,1770152605829,500.0,0.00013699,2]
[404456792,1770152605858,259.98197506,0.00013699,2]
[404456793,1770152605890,303.48110997,0.00013699,2]
[404456794,1770152606072,246.11828003,0.00013273,2]
[404456795,1770152606140,500.0,0.00013699,2]
[404456796,1770152606229,503.99891649,0.00013699,2]
[404456797,1770152606771,500.0,0.00013699,2]
[404456798,1770152621757,-166.66666668,0.00013721,2]
[404456799,1770152646612,503.75509529,0.00013699,2]
[404456800,1770152647391,500.0,0.00013699,2]
[404456801,1770152650411,300.0,0.00013673,2]
[404456802,1770152650624,500.0,0.00013699,2]
[404456803,1770152703792,500.0,0.00013699,2]
[404456804,1770152703820,160.33458198,0.00013699,2]
[404456805,1770152703990,500.0,0.00013699,2]
[404456806,1770152706142,500.0,0.00013699,2]
[404456807,1770152706679,500.0,0.00013699,2]
[404456808,1770152707766,500.0,0.00013273,2]
[404456809,1770152707794,500.0,0.00013699,2]
[404456810,1770152710400,494.39943405,0.00013699,2]
[404456811,1770152724026,499.64330559,0.00013699,2]
[404456812,1770152726281,500.0,0.00013273,2]
[404456813,1770152726895,500.0,0.00013273,2]
[404456814,1770152728561,382.89128994,0.00013699,2]
[404456815,1770152728848,500.0,0.00013699,2]
[404456816,1770152729053,500.0,0.00013273,2]
[404456817,1770152729199,500.0,0.00013699,2]
[404456818,1770152769183,500.0,0.00013273,2]
[404456819,1770152769535,300.0,0.00013673,2]
[404456820,1770152769579,500.0,0.00013699,2]
[404456821,1770152826377,500.0,0.00013273,2]
[404456822,1770152840992,500.0,0.00013273,2]
[404456823,1770152842919,500.0,0.00013273,2]
[404456824,1770152843243,500.0,0.00013273,2]
[404456825,1770152845597,500.0,0.00013273,2]
[404456826,1770152880728,197.31,9.99e-05,2]
[404456827,1770152881076,197.31,9.99e-05,2]
[404456828,1770152890204,500.0,0.00013273,2]
[404456829,1770152890563,500.0,0.00013699,2]
[404456830,1770152890625,300.0,0.00013673,2]
[404456831,1770152903819,3061.25338347,0.00013721,2]
[404456832,1770152927039,1059.16066659,0.00013721,2]
[404456833,1770152944111,384.97594994,0.00013699,2]
[404456834,1770152944135,118.34558177,0.00013699,2]
[404456835,1770152947913,500.0,0.00013273,2]
[404456836,1770152948496,500.0,0.00013273,2]
[404456837,1770152964669,500.0,0.00013273,2]
[404456838,1770152966391,500.0,0.00013273,2]
[404456839,1770152967803,500.0,0.00013273,2]
[404456840,1770152968126,-1200.0,0.0001382,2]
[404456841,1770152968155,-300.0,0.0001382,2]
[404456842,1770152968179,-150.0,0.0001382,2]
[404456843,1770152968199,-714.10871006,0.00013821,2]
[404456844,1770152968219,-1125.9462746,0.00013821,2]
[404456845,1770152968238,-1000.0,0.00013821,2]
[404456846,1770152968259,-1000.0,0.00013821,2]
[404456847,1770152968280,-424.19855448,0.00013821,2]
[404456848,1770153010432,500.0,0.00013273,2]
[404456849,1770153010584,500.0,0.00013699,2]
[404456850,1770153010791,300.0,0.00013673,2]
[404456851,1770153011882,-300.0,0.0001382,2]
[404456852,1770153014099,-300.0,0.0001382,2]
[404456853,1770153015610,-180.0,0.0001382,2]
[404456854,1770153015633,-129.12418203,0.00013821,2]
[404456855,1770153020683,-400.03031374,0.00013821,2]
[404456856,1770153023964,-115.62612239,0.00013821,2]
[404456857,1770153023986,-169.06861493,0.00013821,2]
[404456858,1770153026048,-240.1663406,0.00013821,2]
[404456859,1770153027435,6081.66441823,0.0001327,2]
[404456860,1770153027459,3042.13029267,0.0001327,2]
[404456861,1770153028054,-90.76504447,0.00013821,2]
[404456862,1770153028075,-209.37198631,0.00013821,2]
[404456863,1770153030248,-168.0681053,0.00013821,2]
[404456874,1770153031768,-343.75704633,0.00013821,2]
[404456892,1770153032036,-278.80286206,0.00013821,2]
[404456894,1770153032046,-281.34445988,0.00013821,2]
[404456896,1770153032057,-218.65554012,0.00013821,2]
[404456898,1770153032066,-206.32990251,0.00013821,2]
[404456899,1770153032094,-293.67009749,0.00013821,2]
[404456900,1770153032104,-900.30319952,0.00013821,2]
[404456902,1770153032113,-413.56318914,0.00014221,2]
[404456903,1770153032123,-33999.28296117,0.00014221,2]
[404456904,1770153032132,-500.0,0.00014247,2]
[404456905,1770153032141,-1000.0,0.00014247,2]
[404456906,1770153032151,-588.67708868,0.00014247,2]
[404456907,1770153032163,-500.0,0.00014247,2]
[404456908,1770153032172,-502.31785665,0.00014247,2]
[404456910,1770153032182,-502.95124717,0.00014247,2]
[404456912,1770153032191,-1000.0,0.00014247,2]
[404456914,1770153032202,-802.88258466,0.00014368,2]
[404456916,1770153032210,-1376.75179994,0.00014368,2]
[404456918,1770153032221,-1000.0,0.00014368,2]
[404456920,1770153032231,-519.08575777,0.00014419,2]
[404456922,1770153032244,-500.0,0.0001442,2]
[404456924,1770153032254,-500.0,0.00014425,2]
[404456926,1770153032264,-300.0,0.0001453,2]
[404456928,1770153032273,-189.39270349,0.0001453,2]
[404456929,1770153032285,-110.60729651,0.0001453,2]
[404456930,1770153032295,-300.0,0.0001453,2]
[404456931,1770153032304,-300.0,0.0001453,2]
[404456932,1770153032313,-99.067203,0.0001453,2]
[404456933,1770153032324,-200.932797,0.0001453,2]
[404456934,1770153032333,-300.0,0.0001453,2]
[404456935,1770153032342,-300.0,0.0001453,2]
[404456936,1770153032352,-300.0,0.0001453,2]
[404456937,1770153032360,-148.57411696,0.0001453,2]
[404456938,1770153032372,-151.42588304,0.0001453,2]
[404456939,1770153032383,-300.0,0.0001453,2]
[404456940,1770153032392,-300.0,0.0001453,2]
[404456941,1770153032402,-211.47895438,0.0001453,2]
[404456951,1770153038216,-500.0,0.0001422,2]
[404456952,1770153038228,-471.34413282,0.0001422,2]
[404456953,1770153038238,-270.99616306,0.0001422,2]
[404456954,1770153038253,-88.52104562,0.0001453,2]
[404456955,1770153038263,-300.0,0.0001453,2]
[404456957,1770153038283,-300.0,0.0001453,2]
[404456958,1770153038295,-300.0,0.0001453,2]
[404456960,1770153038306,-585.51407818,0.00014795,2]
[404456962,1770153038317,-1341.91853518,0.00014795,2]
[404456964,1770153038327,-600.0,0.0001482,2]
[404456965,1770153038338,-332.26051889,0.00015238,2]
[404456966,1770153038348,-3266.95,0.00015342,2]
[404456967,1770153038358,-177.0,0.0001582,2]
[404456968,1770153038368,-720.0,0.00016302,2]
[404456969,1770153038378,-204.0,0.0001782,2]
[404456970,1770153038388,-864.0,0.00017932,2]
[404456971,1770153038398,-250.0,0.00018261,2]
[404456972,1770153038408,-920.8,0.00019625,2]
[404456973,1770153038418,-1000.0,0.00019725,2]
[404456974,1770153038428,-231.0,0.0001982,2]
[404456975,1770153038438,-150.0,0.00021,2]
[404456976,1770153038449,-1000.0,0.00021697,10]
[404456977,1770153038459,-244.0,0.00021697,10]
[404456978,1770153038469,-258.0,0.0002182,2]
[404456979,1770153038479,-285.0,0.0002382,2]
[404456980,1770153038490,-1000.0,0.00023867,10]
[404456981,1770153038504,-492.0,0.00023867,10]
[404456982,1770153038515,-273.85096895,0.0002488,2]
[404456983,1770153038526,-1041.66666667,0.00025045,2]
[404456984,1770153038536,-740.91124423,0.00025048,2]
[404456985,1770153038546,-2154.0,0.00025192,2]
[404456986,1770153038556,-631.0,0.00025192,2]
[404456987,1770153038566,-360.0,0.00025194,2]
[404456988,1770153038576,-179.0,0.00025194,2]
[404456989,1770153038586,-419.0,0.00025194,2]
[404456990,1770153038596,-312.0,0.0002582,2]
[404456991,1770153038606,-1000.0,0.00026254,30]
[404456992,1770153038616,-791.0,0.00026254,30]
[404456993,1770153038627,-335.34116783,0.00027397,2]
[404456994,1770153038637,-2154.0,0.00028192,2]
[404456995,1770153038646,-631.0,0.00028192,2]
[404456996,1770153038656,-179.0,0.00028194,2]
[404456997,1770153038666,-1000.0,0.00028879,30]
[404456998,1770153038676,-1000.0,0.00028879,30]
[404456999,1770153038687,-415.92538315,0.00030237,2]
[404457000,1770153038698,-159.62665952,0.00030245,10]
[404457001,1770153038708,-275.68468701,0.00030928,2]
[404457002,1770153038718,-33999.28296117,0.00030972,2]
[404457003,1770153038728,-158.22408504,0.00031072,2]
[404457004,1770153038738,-2148.0,0.00031192,2]
[404457005,1770153038750,-629.0,0.00031192,2]
[404457006,1770153038760,-179.0,0.00031194,2]
[404457007,1770153038770,-1000.0,0.00031767,30]
[404457008,1770153038785,-1000.0,0.00031767,30]
[404457009,1770153038795,-322.0,0.00031767,30]
[404457010,1770153038805,-215.751,0.00031808,30]
[404457011,1770153038815,-169.70744721,0.00032148,10]
[404457012,1770153038825,-184.66394922,0.000332,117]
[404457013,1770153038836,-250.0,0.00033511,2]
[404457014,1770153038847,-250.0,0.00033511,2]
[404457015,1770153038857,-250.0,0.00033511,2]
[404457016,1770153038867,-250.0,0.00033511,2]
[404457017,1770153038878,-250.0,0.00033511,2]
[404457018,1770153038888,-250.0,0.00033511,2]
[404457019,1770153038898,-250.0,0.00033511,2]
[404457020,1770153038909,-250.0,0.00033511,2]
[404457021,1770153038919,-250.0,0.00033511,2]
[404457022,1770153038930,-250.0,0.00033511,2]
[404457023,1770153038941,-250.0,0.00033511,2]
[404457024,1770153038951,-250.0,0.00033511,2]
[404457025,1770153038961,-250.0,0.00033511,2]
[404457026,1770153038971,-250.0,0.00033511,2]
[404457027,1770153038981,-250.0,0.00033511,2]
[404457028,1770153038990,-250.0,0.00033511,2]
[404457029,1770153039005,-250.0,0.00033511,2]
[404457030,1770153039015,-250.0,0.00033511,2]
[404457031,1770153039025,-250.0,0.00033511,2]
[404457032,1770153039035,-250.0,0.00033511,2]
[404457033,1770153039045,-250.0,0.00033511,2]
[404457034,1770153039055,-250.0,0.00033511,2]
[404457035,1770153039065,-250.0,0.00033511,2]
[404457036,1770153039075,-500.0,0.00034164,10]
[404457037,1770153039085,-179.0,0.00034194,2]
[404457038,1770153039095,-157.077,0.00037194,2]
[404457039,1770153039105,-158.22408502,0.00040486,2]
[404457040,1770153039119,-1000.0,0.00044,120]
[404457041,1770153039129,-275.68468701,0.00047692,4]
[404457042,1770153039139,-567.36,0.00047713,10]
[404457043,1770153039148,-472.8,0.00047713,10]
[404457044,1770153039160,-394.0,0.00047713,10]
[404457045,1770153039170,-33999.28296117,0.00047723,2]
[404457046,1770153039180,-172.7647991,0.00047913,2]
[404457047,1770153039189,-3727.6580371,0.00047921,2]
[404457048,1770153039199,-166.50806295,0.00048403,7]
[404457049,1770153039210,-172.988977,0.00048516,60]
[404457050,1770153039220,-5000.0,0.000489,2]
[404457051,1770153039230,-158.22408502,0.000499,2]
[404457052,1770153039243,-487.8,0.0004999,30]
[404457053,1770153039256,-1929.79280907,0.0004999,4]
[404457054,1770153039266,-69702.58831935,0.0005,120]
[404457055,1770153039280,-11566.64503858,0.0005,120]
[404457056,1770153039291,-495.18688155,0.0005,30]
[404457057,1770153039301,-740.91124423,0.0005,7]
[404457058,1770153039311,-10397.25683564,0.0005,60]
[404457068,1770153040227,-164.37107931,0.0001422,2]
[404457070,1770153040238,-250.0,0.00033511,2]
[404457072,1770153040250,-19.45134695,0.00033511,2]
[404457074,1770153040263,-136.33014665,0.00033511,2]
[404457076,1770153040272,-2522.40494975,0.0005,60]
[404457079,1770153040284,-12322.41191072,0.0005,60]
[404457161,1770153041086,-3358.99470674,0.0005,60]
[404457164,1770153041097,-822.55409818,0.0005,60]
[404457181,1770153041255,-3e-08,0.0005,60]
[404457566,1770153045157,-328.33,0.0004999,10]
[404457568,1770153045170,-7688.84750656,0.0005,60]
[404457678,1770153046311,-5986.72523468,0.0005,60]
[404458023,1770153063376,500.0,0.00013273,2]
[404458024,1770153066426,500.0,0.00013699,2]
[404458025,1770153066797,500.0,0.00013273,2]
[404458026,1770153068066,-347.37558881,0.00013821,2]
[404458027,1770153074147,-152.62441119,0.00013821,2]
[404458028,1770153074172,-103.61854248,0.00013821,2]
[404458029,1770153076825,-158.72577051,0.00013821,2]
[404458030,1770153079401,-199.96968626,0.00013821,2]
[404458031,1770153082247,301.84103097,0.00013699,2]
[404458032,1770153082592,500.0,0.00013273,2]
[404458033,1770153085104,500.0,0.00013273,2]
[404458034,1770153085755,500.0,0.00013699,2]
[404458035,1770153086076,500.0,0.00013273,2]
[404458036,1770153123475,500.0,0.00013273,2]
[404458037,1770153126371,500.0,0.00013273,2]
[404458038,1770153126488,500.0,0.00013273,2]
[404458039,1770153126516,500.0,0.00013273,2]
[404458040,1770153130331,500.0,0.00013273,2]
[404458041,1770153130967,300.0,0.00013673,2]
[404458042,1770153131116,356.03867636,0.00013699,2]
[404458043,1770153131139,143.96132364,0.00013699,2]
[404458044,1770153146713,-300.0,0.0001382,2]
[404458045,1770153146742,-35.58997883,0.00013821,2]
[404458046,1770153146772,-664.41002117,0.00013821,2]
[404458047,1770153148688,-335.58997883,0.00013821,2]
[404458048,1770153148720,-418.35827428,0.00013821,2]
[404458049,1770153152498,-176.21284786,0.00013821,2]
[404458050,1770153154108,-380.37699242,0.00013821,2]
[404458051,1770153155846,-25.05188544,0.00013821,2]
[404458052,1770153155874,-358.66219258,0.00013821,2]
[404458053,1770153164549,208.04588896,0.0001372,2]
[404458054,1770153170677,380.37506151,0.00013721,2]
[404458055,1770153184081,500.0,0.00013273,2]
[404458056,1770153184207,500.0,0.00013273,2]
[404458057,1770153187502,500.58066668,0.00013699,2]
[404458058,1770153187972,500.0,0.00013699,2]
[404458059,1770153188195,500.0,0.00013699,2]
[404458060,1770153188511,500.0,0.00013273,2]
[404458061,1770153204237,500.0,0.00013273,2]
[404458062,1770153204507,501.10016724,0.00013699,2]
[404458063,1770153204962,-254.31428481,0.00013821,2]
[404458064,1770153206805,500.0,0.00013273,2]
[404458065,1770153207095,500.0,0.00013699,2]
[404458066,1770153209546,-277.33105316,0.00013821,2]
[404458067,1770153215316,207.49215413,0.00013721,2]
[404458068,1770153231449,-222.66894684,0.00013821,2]
[404458069,1770153231477,-500.0,0.00013821,2]
[404458070,1770153231507,-500.0,0.00013821,2]
[404458071,1770153231536,-500.0,0.00013821,2]
[404458072,1770153231565,-1000.0,0.00013821,2]
[404458073,1770153231593,-500.0,0.00013821,2]
[404458074,1770153231621,-500.0,0.00013821,2]
[404458075,1770153231650,-500.0,0.00013821,2]
[404458076,1770153231683,-500.0,0.00013821,2]
[404458077,1770153231972,-371.42403722,0.00013821,2]
[404458078,1770153235104,-233.33723801,0.00013821,2]
[404458079,1770153237431,-395.23872477,0.00013821,2]
[404458080,1770153238568,487.8622746,0.00013559,2]
[404458081,1770153240611,-6178.18659572,0.0001422,2]
[404458082,1770153244841,500.0,0.00013273,2]
[404458083,1770153248024,-500.0,0.00013699,2]
[404458084,1770153248045,-8.3023,0.00013699,2]
[404458085,1770153250057,-579.57397846,0.00013699,2]
[404458086,1770153250790,500.0,0.00013273,2]
[404458087,1770153250851,343.31176669,0.00013673,2]
[404458088,1770153252569,-51.53324251,0.00013699,2]
[404458089,1770153252591,-482.20721652,0.00013699,2]
[404458090,1770153258907,-17.79278348,0.00013699,2]
[404458091,1770153258932,-166.73794428,0.00013699,2]
[404458092,1770153261079,-206.55552103,0.00013699,2]
[404458093,1770153261711,1621.61673749,0.00013699,2]
[404458094,1770153261867,-126.70653469,0.00013699,2]
[404458095,1770153277705,-152.48,0.00013821,2]
[404458096,1770153279079,-251.60112835,0.00013821,2]
[404458097,1770153282222,-298.38957919,0.00013821,2]
[404458098,1770153284429,588.61185611,0.00013726,2]
[404458099,1770153285448,-297.52929246,0.00013821,2]
[404458100,1770153285470,-17.56137082,0.00013821,2]
[404458101,1770153288054,-217.29650655,0.00013821,2]
[404458102,1770153291728,-389.13960131,0.00013821,2]
[404458103,1770153292215,-376.00252132,0.00013821,2]
[404458104,1770153292248,-385.99195581,0.00014219,2]
[404458105,1770153292278,-500.0,0.00014219,2]
[404458106,1770153292307,-325.96667926,0.00014219,2]
[404458107,1770153292339,-500.0,0.00014219,2]
[404458108,1770153292368,-500.0,0.00014219,2]
[404458109,1770153292398,-500.0,0.00014219,2]
[404458110,1770153292427,-500.0,0.00014219,2]
[404458111,1770153292456,-500.0,0.00014219,2]
[404458112,1770153292486,-500.0,0.00014219,2]
[404458113,1770153292516,-324.08768722,0.00014219,2]
[404458114,1770153298183,-175.91231278,0.00014219,2]
[404458115,1770153298217,-500.0,0.00014219,2]
[404458116,1770153298255,-500.0,0.00014219,2]
[404458117,1770153298286,-416.36554883,0.00014219,2]
[404458118,1770153298319,-500.0,0.00014219,2]
[404458119,1770153298355,-500.0,0.00014219,2]
[404458120,1770153298387,-500.0,0.00014219,2]
[404458121,1770153298417,-500.0,0.00014219,2]
[404458122,1770153298448,-500.0,0.00014219,2]
[404458123,1770153298479,-500.0,0.00014219,2]
[404458124,1770153298513,-315.45427678,0.00014219,2]
[404458125,1770153303444,500.0,0.00013273,2]
[404458126,1770153304225,-1043.57219283,0.00013821,2]
[404458127,1770153304257,-300.0,0.00014218,2]
[404458128,1770153304288,-254.0,0.00014218,2]
[404458129,1770153304319,-549.48418784,0.00014219,2]
[404458130,1770153304349,-184.54572322,0.00014219,2]
[404458131,1770153304382,-500.0,0.00014219,2]
[404458132,1770153304414,-500.0,0.00014219,2]
[404458133,1770153304443,-500.0,0.00014219,2]
[404458134,1770153304478,-500.0,0.00014219,2]
[404458135,1770153304508,-500.0,0.00014219,2]
[404458136,1770153306955,500.0,0.00013273,2]
[404458137,1770153308293,-217.08245456,0.00013821,2]
[404458138,1770153310005,-162.60378,0.00013821,2]
[404458139,1770153315844,2000.0,0.00013689,2]
[404458140,1770153316500,-219.02930575,0.00013821,2]
[404458141,1770153323403,-264.3805945,0.00013699,2]
[404458142,1770153325567,-235.6194055,0.00013699,2]
[404458143,1770153325592,-180.68833043,0.00013699,2]
[404458144,1770153325685,500.0,0.00013273,2]
[404458145,1770153326857,500.0,0.00013273,2]
[404458146,1770153328625,-178.02466455,0.00013699,2]
[404458147,1770153331314,-300.0,0.00013699,2]
[404458148,1770153333982,-326.46175366,0.00013699,2]
[404458149,1770153336704,-182.62868097,0.00013699,2]
[404458150,1770153341772,-178.66155229,0.00013699,2]
[404458151,1770153344550,-160.9282218,0.00013699,2]
[404458152,1770153346273,-153.17535962,0.00013699,2]
[404458153,1770153348904,-151.50728891,0.00013699,2]
[404458154,1770153348927,-317.46580245,0.00013699,2]
[404458155,1770153351575,-1.84586712,0.00013699,2]
[404458156,1770153351596,-189.59126743,0.00013699,2]
[404458157,1770153354461,-237.9117782,0.00013699,2]
[404458158,1770153356508,-72.49695437,0.00013699,2]
[404458159,1770153356529,-162.23311984,0.00013699,2]
[404458160,1770153358285,-193.1485395,0.00013699,2]
[404458161,1770153359837,-144.61834066,0.00013699,2]
[404458162,1770153359858,-314.02165934,0.00013699,2]
[404458163,1770153361376,-185.97834066,0.00013699,2]
[404458164,1770153361397,-120.20773056,0.00013699,2]
[404458165,1770153366457,-229.4264115,0.00013699,2]
[404458166,1770153368148,500.0,0.00013273,2]
[404458167,1770153368342,-150.36585794,0.00013699,2]
[404458168,1770153368364,-64.60460517,0.00013699,2]
[404458169,1770153369936,-165.27947505,0.00013699,2]
[404458170,1770153373126,500.0,0.00013273,2]
[404458171,1770153375019,-143.98315379,0.00013699,2]
[404458172,1770153375041,-107.1099477,0.00013699,2]
[404458173,1770153376655,-353.84901916,0.00013699,2]
[404458174,1770153379432,-39.04103314,0.00013699,2]
[404458175,1770153379455,-312.35273166,0.00013699,2]
[404458176,1770153381794,-187.64726834,0.00013699,2]
[404458177,1770153381816,-179.10772465,0.00013699,2]
[404458178,1770153383667,-156.75318363,0.00013699,2]
[404458179,1770153385139,982.7234609,0.00013191,2]
[404458180,1770153385389,-164.55530776,0.00013699,2]
[404458181,1770153385412,-54.8407494,0.00013699,2]
[404458182,1770153388715,-198.0,0.00013699,2]
[404458183,1770153391593,-247.1592506,0.00013699,2]
[404458184,1770153391617,-173.11762635,0.00013699,2]
[404458185,1770153395033,-304.73831557,0.00013699,2]
[404458186,1770153405104,420.27687695,0.00013699,2]
[404458187,1770153423663,500.0,0.00013273,2]
[404458188,1770153423934,183.17981216,0.00013273,2]
[404458189,1770153444896,500.0,0.00013273,2]
[404458190,1770153446447,500.0,0.00013273,2]
[404458191,1770153476227,-332.32202599,0.00013699,2]
[404458192,1770153490239,500.0,0.00013273,2]
[404458193,1770153506411,4413.82984999,0.00013699,2]
[404458194,1770153506438,586.17015001,0.00013699,2]
[404458195,1770153528616,5000.0,0.00013699,2]
[404458196,1770153551490,4413.83984999,0.00013699,2]
[404458197,1770153551516,586.16015001,0.00013699,2]
[404458198,1770153551545,178.77,0.00013699,2]
[404458199,1770153559872,3821.83570936,0.00013699,2]
[404458200,1770153563951,500.0,0.00013273,2]
[404458201,1770153565622,500.0,0.00013273,2]
[404458202,1770153575993,1745.79170455,0.00013699,2]
[404458203,1770153581145,-88.64092771,0.00013699,2]
[404458204,1770153581173,-432.33337893,0.00013699,2]
[404458205,1770153581203,-320.88643099,0.00013699,2]
[404458206,1770153581231,-182.65558878,0.00013699,2]
[404458207,1770153581260,-500.68775555,0.00013699,2]
[404458208,1770153581288,-500.0,0.00013699,2]
[404458209,1770153581315,-150.0,0.00013699,2]
[404458210,1770153581349,-500.0,0.00013699,2]
[404458211,1770153581376,-244.41498166,0.00013699,2]
[404458212,1770153581405,-164.32780383,0.00013699,2]
[404458213,1770153581433,-500.0,0.00013699,2]
[404458214,1770153581461,-500.0,0.00013699,2]
[404458215,1770153581487,-502.63486723,0.00013699,2]
[404458216,1770153581515,-150.0,0.00013699,2]
[404458217,1770153581543,-72.4003451,0.00013699,2]
[404458218,1770153596210,-200.77348075,0.00013699,2]
[404458219,1770153598889,-181.27235969,0.00013699,2]
[404458220,1770153598911,-44.8190991,0.000137,2]
[404458222,1770153602572,-209.6709009,0.000137,2]
[404458223,1770153602594,-106.02815985,0.00013721,2]
[404458224,1770153605883,-102.01772911,0.00013721,2]
[404458225,1770153605904,-8.07108377,0.00013821,2]
[404458226,1770153605925,-110.23274308,0.00013821,2]
[404458227,1770153607991,-227.4593225,0.00013699,2]
[404458228,1770153611024,440.48087557,0.00013673,2]
[404458229,1770153613093,500.0,0.00013273,2]
[404458230,1770153663829,156.3526698,0.00013273,2]
[404458231,1770153667194,500.0,0.00013273,2]
[404458232,1770153670040,508.39514078,0.00013273,2]
[404458233,1770153686327,500.0,0.00013273,2]
[404458234,1770153686539,500.0,0.00013273,2]
[404458235,1770153727361,500.0,0.00013273,2]
[404458236,1770153728392,300.0,0.00013698,2]
[404458237,1770153731998,500.0,0.00013273,2]
[404458238,1770153738099,-272.5406775,0.00013699,2]
[404458239,1770153738126,-500.0,0.00013699,2]
[404458240,1770153738158,-500.0,0.00013699,2]
[404458241,1770153738187,-500.0,0.00013699,2]
[404458242,1770153738216,-502.60581445,0.00013699,2]
[404458243,1770153738243,-300.0,0.00013699,2]
[404458244,1770153738271,-500.0,0.00013699,2]
[404458245,1770153738299,-500.0,0.00013699,2]
[404458246,1770153738326,-500.0,0.00013699,2]
[404458247,1770153738354,-500.0,0.00013699,2]
[404458248,1770153738385,-349.7170161,0.00013699,2]
[404458249,1770153744091,-150.2829839,0.00013699,2]
[404458250,1770153744121,-445.4474045,0.00013699,2]
[404458251,1770153744151,-500.0,0.00013699,2]
[404458252,1770153744183,-150.0,0.0001376,2]
[404458253,1770153744213,-889.76725692,0.00013821,2]
[404458254,1770153744242,-1098.55870767,0.00013821,2]
[404458255,1770153744271,-500.0,0.00013821,2]
[404458256,1770153744299,-1000.0,0.00013821,2]
[404458257,1770153750062,-1000.0,0.00013821,2]
[404458258,1770153750092,-1000.0,0.00013821,2]
[404458259,1770153750121,-1099.69680048,0.00013821,2]
[404458260,1770153752196,3800.61639904,0.00013253,2]
[404458261,1770153752217,18849.36046576,0.00013253,2]
[404458262,1770153761331,5000.0,0.00013697,2]
[404458263,1770153783044,500.0,0.00013273,2]
[404458264,1770153783837,500.0,0.00013273,2]
[404458265,1770153783892,500.0,0.00013273,2]
[404458266,1770153785742,500.0,0.00013273,2]
[404458267,1770153791423,500.0,0.00013273,2]
[404458268,1770153806731,500.0,0.00013273,2]